bitfinex/quotes_ETHUSD_20241022
["timestamp","ask_amount","ask_price","bid_price","bid_amount"]
[1729579302588,0.02,2659.1,2659.0,1.99058388]
[1729579303290,5.08509999,2659.3,2659.0,1.99058388]
[1729579303497,1.32469999,2659.3,2659.0,1.99058388]
[1729579303708,5.06522999,2659.2,2659.0,1.99058388]
[1729579303904,3.76053,2659.2,2659.0,1.99058388]
[1729579304488,1.32469999,2659.3,2659.0,1.99058388]
[1729579304489,0.02,2659.3,2659.0,1.99058388]
[1729579305092,0.02,2659.3,2659.1,1.3216]
[1729579305408,0.02,2659.3,2659.2,0.08772269]
[1729579305603,0.02,2659.3,2659.2,0.63772269]
[1729579308782,0.02,2659.3,2659.2,5.70294268]
[1729579309224,0.02,2659.5,2659.3,0.55]
[1729579309576,0.02,2659.5,2659.4,0.08767269]
[1729579310411,0.02,2659.5,2659.4,6.55671601]
[1729579310992,0.02,2659.5,2659.4,6.48151268]
[1729579311591,0.02,2659.5,2659.4,6.55670533]
[1729579312990,0.02,2659.5,2659.4,6.48151268]
[1729579313830,0.02,2659.5,2659.4,0.08767269]
[1729579313989,0.7951,2659.5,2659.4,0.08767269]
[1729579314188,0.7951,2659.5,2659.1,1.30469999]
[1729579314424,0.7951,2659.5,2659.4,0.08427454]
[1729579314602,0.7951,2659.5,2659.1,1.30469999]
[1729579314805,0.7951,2659.5,2659.4,0.08427454]
[1729579315024,0.7951,2659.5,2659.1,1.30469999]
[1729579315238,0.7951,2659.5,2659.4,0.08427454]
[1729579315535,0.7951,2659.5,2659.1,1.30469999]
[1729579315920,0.7951,2659.5,2659.2,0.08429891]
[1729579316323,0.7951,2659.5,2659.2,1.3889989]
[1729579316837,0.7951,2659.5,2659.2,0.08429891]
[1729579317730,3.57395792,2659.6,2659.2,0.08429891]
[1729579317937,4.44071971,2659.6,2659.2,0.08429891]
[1729579320376,4.62674179,2659.6,2659.2,0.08429891]
[1729579320709,0.7871,2659.5,2659.2,0.08429891]
[1729579320933,2.09179999,2659.5,2659.0,1.9]
[1729579321151,2.09179999,2659.5,2659.1,0.0843111]
[1729579321152,5.06500999,2659.4,2659.1,0.0843111]
[1729579321352,3.76031,2659.4,2659.1,0.0843111]
[1729579323353,0.7871,2659.5,2659.1,0.0843111]
[1729579325744,2.09179999,2659.5,2659.1,0.0843111]
[1729579325943,0.7871,2659.5,2659.1,0.0843111]
[1729579326115,0.7871,2659.5,2659.1,3.8449611]
[1729579326328,0.7871,2659.5,2659.1,0.0843111]
[1729579327031,2.09179999,2659.5,2659.1,0.0843111]
[1729579327970,0.7871,2659.5,2659.1,0.0843111]
[1729579329833,4.54721,2659.5,2659.1,0.0843111]
[1729579330233,1.30469999,2659.6,2659.1,0.0843111]
[1729579330445,5.06465999,2659.6,2659.1,0.0843111]
[1729579331376,3.7601,2659.5,2659.1,0.0843111]
[1729579332876,5.06479999,2659.5,2659.1,0.0843111]
[1729579333268,0.7573,2659.2,2659.1,0.0843111]
[1729579334195,4.52917,2659.4,2659.1,0.0843111]
[1729579334590,0.7688,2659.4,2659.1,0.0843111]
[1729579334894,3.76039,2659.3,2659.1,0.0843111]
[1729579335192,4.52904,2659.4,2659.1,0.0843111]
[1729579335395,5.06509999,2659.3,2659.1,0.0843111]
[1729579335892,3.7604,2659.3,2659.1,0.0843111]
[1729579336271,8.82558999,2659.3,2659.1,0.0843111]
[1729579336587,3.7604,2659.3,2659.1,0.0843111]
[1729579338296,4.52905,2659.4,2659.1,0.8502111]
[1729579339003,4.22130672,2659.7,2659.1,1.12523221]
[1729579339157,4.97310672,2659.7,2659.2,1.85469999]
[1729579339497,4.97310672,2659.7,2659.3,0.08119642]
[1729579340017,4.97310672,2659.7,2659.4,0.08118423]
[1729579340196,3.75996,2659.6,2659.4,0.08118423]
[1729579340491,6.27780671,2659.7,2659.2,0.55]
[1729579340688,6.27780671,2659.7,2659.5,0.08117205]
[1729579340866,6.27780671,2659.7,2659.2,0.55]
[1729579341070,6.27780671,2659.7,2659.6,0.08115986]
[1729579341296,10.03775671,2659.7,2659.2,0.55]
[1729579341469,6.27780671,2659.7,2659.6,0.08115986]
[1729579341670,6.27780671,2659.7,2659.2,0.55]
[1729579341970,6.27780671,2659.7,2659.3,0.08119642]
[1729579342189,6.27780671,2659.7,2659.2,0.55]
[1729579342397,5.84563,2659.7,2659.3,0.08030975]
[1729579342718,5.84563,2659.7,2659.2,0.55]
[1729579342868,5.84563,2659.7,2659.4,0.08029756]
[1729579343068,5.84563,2659.7,2659.3,0.08030975]
[1729579343381,5.84563,2659.7,2659.4,0.08029756]
[1729579343583,5.8456,2659.7,2659.2,0.55]
[1729579343768,5.8456,2659.7,2659.3,0.08030975]
[1729579343963,5.8456,2659.7,2659.2,0.55]
[1729579344194,5.8456,2659.7,2659.3,0.08030975]
[1729579344382,5.8456,2659.7,2659.2,0.55]
[1729579344582,3.75998,2659.6,2659.3,0.08030975]
[1729579344967,3.75998,2659.6,2659.2,0.55]
[1729579345591,5.8456,2659.7,2659.1,4.52655]
[1729579346011,5.8456,2659.7,2659.1,5.83124999]
[1729579346416,9.60554,2659.7,2659.1,5.83124999]
[1729579346601,0.02920001,2659.7,2659.2,4.85469999]
[1729579346796,0.02920001,2659.7,2659.2,8.61513999]
[1729579347182,0.02920001,2659.7,2659.2,11.07089]
[1729579348715,0.02920001,2659.7,2659.2,11.07088]
[1729579348914,0.79030001,2659.7,2659.2,7.31044]
[1729579349105,0.79030001,2659.7,2659.2,11.07088]
[1729579349303,0.79030001,2659.7,2659.2,7.31044]
[1729579349815,0.79030001,2659.7,2659.3,3.76036]
[1729579351494,0.02920001,2659.7,2659.3,3.76036]
[1729579352921,1.3339,2659.7,2659.3,3.76036]
[1729579353121,0.02920001,2659.7,2659.3,3.76036]
[1729579353590,0.02920001,2659.7,2659.4,0.0803104]
[1729579355519,1.3339,2659.7,2659.4,0.0803104]
[1729579355710,1.3339,2659.7,2659.3,3.76037]
[1729579355892,1.3339,2659.7,2659.5,0.08020851]
[1729579356093,1.3339,2659.7,2659.3,3.76037]
[1729579356302,1.3339,2659.7,2659.6,0.08019633]
[1729579356505,1.3339,2659.7,2659.3,3.76037]
[1729579356719,1.3339,2659.7,2659.6,0.08019633]
[1729579357187,1.3339,2659.7,2659.3,3.76037]
[1729579357555,1.3339,2659.7,2659.4,0.0802207]
[1729579357891,2.07469999,2659.5,2659.1,3.7659]
[1729579358126,0.77,2659.5,2659.1,3.7659]
[1729579358529,0.77,2659.5,2659.1,0.7659]
[1729579359027,0.77,2659.5,2659.1,4.52655]
[1729579361277,0.77,2659.5,2659.1,3.76065]
[1729579361634,0.77,2659.5,2659.1,0.55]
[1729579361941,2.07469999,2659.5,2659.0,5.6607]
[1729579363238,0.77,2659.5,2659.0,6.96539999]
[1729579363578,0.77,2659.5,2659.0,5.6607]
[1729579365688,0.77,2659.5,2659.1,4.31065]
[1729579366885,0.83670001,2659.7,2659.1,5.61534999]
[1729579367089,2.1414,2659.7,2659.1,0.55]
[1729579367253,0.83670001,2659.7,2659.2,3.76051]
[1729579368395,4.59660001,2659.7,2659.1,0.55]
[1729579368695,5.9013,2659.7,2659.1,0.55]
[1729579368907,5.9013,2659.7,2659.1,4.31067]
[1729579369072,5.9013,2659.7,2659.2,0.07541471]
[1729579377588,6.91062672,2659.7,2659.2,0.07541471]
[1729579378937,0.754,2659.6,2659.2,0.07541471]
[1729579383029,5.81867999,2659.6,2659.2,0.07541471]
[1729579384998,0.7746,2659.4,2659.2,0.07541471]
[1729579385421,2.07929999,2659.4,2659.2,0.07541471]
[1729579385609,0.7746,2659.4,2659.0,1.9]
[1729579385993,0.7746,2659.4,2659.1,0.07309997]
[1729579386453,2.07929999,2659.4,2659.1,0.07309997]
[1729579386857,1.30469999,2659.3,2659.1,0.07309997]
[1729579387014,6.42355199,2659.4,2659.1,0.07309997]
[1729579387419,2.66324199,2659.4,2659.1,0.07309997]
[1729579387613,2.07929999,2659.4,2659.1,0.07309997]
[1729579388555,1.30469999,2659.2,2659.1,0.07309997]
[1729579388713,7.12981998,2659.2,2659.1,0.07309997]
[1729579389053,7.12981998,2659.2,2658.1,3.78078792]
[1729579389054,4.5213,2658.6,2658.1,0.01880792]
[1729579389241,2.06459999,2658.6,2658.2,1.9]
[1729579389437,2.06459999,2658.6,2658.3,0.0633092]
[1729579389650,2.06459999,2658.6,2658.2,1.9]
[1729579389836,1.30469999,2658.5,2658.4,0.06329701]
[1729579390045,1.88728799,2658.5,2658.2,1.9]
[1729579390243,2.08829999,2658.3,2658.2,1.9]
[1729579390619,0.7836,2658.3,2658.2,1.9]
[1729579390958,2.08829999,2658.3,2658.2,1.9]
[1729579391174,5.85009999,2658.3,2658.2,1.9]
[1729579391865,3.76226,2658.0,2657.4,3.7546]
[1729579392078,3.76226,2658.0,2657.4,2.6546]
[1729579392079,5.06709999,2657.9,2657.4,2.6546]
[1729579392516,1.30469999,2657.9,2657.4,2.6546]
[1729579393041,1.30469999,2657.9,2657.4,1.9]
[1729579393042,1.30469999,2657.7,2657.4,1.9]
[1729579393218,5.06728999,2657.8,2657.4,1.9]
[1729579394268,3.76259,2657.8,2657.4,1.9]
[1729579394569,2.10669999,2657.9,2657.4,1.9]
[1729579394570,5.86914999,2657.9,2657.4,1.9]
[1729579395068,1.30469999,2657.8,2657.4,1.9]
[1729579396291,1.30469999,2657.7,2657.4,1.9]
[1729579396580,1.30469999,2657.8,2657.4,1.9]
[1729579396735,1.30469999,2657.7,2657.4,1.9]
[1729579398670,1.30469999,2657.8,2657.4,1.9]
[1729579399079,1.30469999,2657.8,2657.5,0.06340679]
[1729579399446,1.30469999,2657.7,2657.5,0.06340679]
[1729579399946,1.30469999,2657.8,2657.5,0.06340679]
[1729579400150,1.30469999,2657.7,2657.5,0.06340679]
[1729579400539,1.30469999,2657.8,2657.5,0.06340679]
[1729579400774,1.30469999,2657.7,2657.5,0.06340679]
[1729579402475,5.06735999,2657.7,2657.5,0.06340679]
[1729579402686,0.8067,2657.6,2657.5,0.06340679]
[1729579405891,2.11139999,2657.6,2657.5,0.06340679]
[1729579406068,0.8067,2657.6,2657.5,0.06340679]
[1729579413675,0.43245593,2658.0,2657.6,0.55]
[1729579413876,1.30469999,2657.9,2657.5,0.25974747]
[1729579414057,1.30469999,2657.9,2657.7,0.06539898]
[1729579415163,5.49945592,2658.0,2657.7,0.06539898]
[1729579415801,1.30469999,2657.9,2657.7,0.06539898]
[1729579416802,5.06707999,2657.9,2657.7,0.06539898]
[1729579419676,1.30469999,2657.8,2657.7,0.06539898]
[1729579422401,5.06707999,2657.9,2657.7,0.06539898]
[1729579424274,3.76238,2657.9,2657.7,0.06539898]
[1729579424985,1.73715592,2658.0,2657.7,0.06539898]
[1729579425668,5.49942592,2658.0,2657.7,0.06539898]
[1729579426102,5.06706999,2657.9,2657.7,0.06539898]
[1729579426407,3.76251,2657.8,2657.7,0.06539898]
[1729579426817,5.06706999,2657.9,2657.7,0.06539898]
[1729579432716,8.82951999,2657.9,2657.7,0.06539898]
[1729579433083,5.06706999,2657.9,2657.7,0.06539898]
[1729579434635,3.76251,2657.8,2657.7,0.06539898]
[1729579434835,5.06720999,2657.8,2657.7,0.06539898]
[1729579436936,5.99340158,2657.8,2657.7,0.06539898]
[1729579437138,3.76293,2657.5,2657.4,1.9]
[1729579437309,3.76293,2657.5,2657.0,0.01880792]
[1729579437310,2.10359999,2657.5,2657.0,0.80180792]
[1729579437629,2.10359999,2657.5,2657.0,0.783]
[1729579437630,3.76334,2657.3,2657.0,0.783]
[1729579438214,0.7989,2657.5,2657.0,2.08769999]
[1729579438453,3.76286,2657.6,2657.1,0.20877]
[1729579438593,5.06755999,2657.6,2657.2,0.55]
[1729579441992,3.76296,2657.5,2657.2,0.55]
[1729579442193,2.09619999,2657.3,2656.7,0.7859]
[1729579442441,5.06831999,2657.1,2656.7,0.7859]
[1729579442764,3.76372,2657.0,2656.7,0.7859]
[1729579443253,3.76352,2657.1,2656.7,0.7859]
[1729579443602,5.06821999,2657.1,2656.7,0.7859]
[1729579444098,3.76352,2657.1,2656.8,0.60613783]
[1729579444694,5.06813999,2657.2,2656.8,0.60613783]
[1729579444934,3.76357,2657.1,2656.8,0.60613783]
[1729579445271,5.06826999,2657.1,2656.8,0.60613783]
[1729579445798,3.76357,2657.1,2656.8,0.60613783]
[1729579446014,5.06826999,2657.1,2656.8,0.60613783]
[1729579446561,3.76367,2657.0,2656.8,0.60613783]
[1729579447109,8.83159999,2657.2,2656.8,0.60613783]
[1729579447639,3.76351,2657.1,2656.8,0.60613783]
[1729579447945,5.06820999,2657.1,2656.8,0.60613783]
[1729579448301,3.76364,2657.0,2656.8,0.05613783]
[1729579448500,7.52739,2657.0,2656.8,0.05613783]
[1729579448715,5.06833999,2657.0,2656.8,0.05613783]
[1729579448947,3.76364,2657.0,2656.8,0.05613783]
[1729579449236,5.06833999,2657.0,2656.8,0.05613783]
[1729579449434,3.76345,2657.2,2656.8,0.05613783]
[1729579449602,7.5269,2657.2,2656.8,0.05613783]
[1729579449799,8.83159999,2657.2,2656.8,0.05613783]
[1729579449998,5.06814999,2657.2,2656.8,0.05613783]
[1729579451529,3.76345,2657.2,2656.8,0.05613783]
[1729579451729,5.06791999,2657.3,2656.8,0.05613783]
[1729579452662,1.30469999,2657.3,2657.0,0.8133]
[1729579452853,5.06777999,2657.4,2657.0,0.8133]
[1729579453031,5.06777999,2657.4,2657.1,0.05502148]
[1729579453227,1.30469999,2657.4,2657.1,0.05502148]
[1729579453641,2.12099999,2657.5,2657.1,0.05502148]
[1729579453975,5.06762999,2657.5,2657.2,0.55]
[1729579454268,5.06762999,2657.5,2657.2,0.60509887]
[1729579454474,1.30469999,2657.4,2657.2,0.60509887]
[1729579454873,5.06781999,2657.4,2657.2,0.60509887]
[1729579459673,3.76288,2657.6,2657.2,0.60509887]
[1729579459977,1.30469999,2657.5,2657.2,0.60509887]
[1729579460557,1.30469999,2657.4,2657.2,0.60509887]
[1729579461664,8.83073999,2657.5,2657.2,0.60509887]
[1729579461866,5.06770999,2657.5,2657.2,0.60509887]
[1729579462083,5.06778999,2657.4,2657.2,0.60509887]
[1729579463979,1.30469999,2657.3,2657.2,0.60509887]
[1729579466188,5.06790999,2657.3,2657.2,0.60509887]
[1729579466694,1.30469999,2657.3,2657.2,0.60509887]
[1729579467993,5.06790999,2657.3,2657.2,0.60509887]
[1729579468690,5.06790999,2657.3,2657.2,0.05509887]
[1729579468901,2.0520115,2657.3,2656.9,0.7645]
[1729579469104,5.06806999,2657.2,2657.0,0.60139042]
[1729579470710,3.76337,2657.2,2657.0,0.60139042]
[1729579471202,5.06806999,2657.2,2657.0,0.60139042]
[1729579472322,5.06792999,2657.3,2657.0,0.60139042]
[1729579475019,3.76323,2657.3,2657.0,0.60139042]
[1729579475222,5.06784999,2657.4,2657.0,0.60139042]
[1729579475724,8.83103999,2657.4,2657.0,0.60139042]
[1729579476525,5.06784999,2657.4,2657.0,0.60139042]
[1729579476724,8.83100999,2657.4,2657.0,0.60139042]
[1729579477231,3.76325,2657.3,2657.0,0.60139042]
[1729579482731,3.76315,2657.4,2657.0,0.60139042]
[1729579482941,3.76315,2657.4,2657.1,0.7851]
[1729579483238,7.52633,2657.4,2657.1,0.83648462]
[1729579484356,3.76322,2657.3,2657.1,0.83648462]
[1729579484651,3.76315,2657.4,2657.1,0.83648462]
[1729579485367,7.52635,2657.4,2657.1,0.83648462]
[1729579486449,3.76322,2657.3,2657.1,0.83648462]
[1729579486756,3.7620376,2657.3,2657.1,0.83648462]
[1729579487425,5.06673759,2657.3,2657.1,0.83648462]
[1729579487646,3.7620376,2657.3,2657.1,0.83648462]
[1729579489659,3.76321,2657.3,2657.1,0.83648462]
[1729579496071,3.76321,2657.3,2657.2,0.2]
[1729579496373,3.76321,2657.3,2657.2,0.25144281]
[1729579500684,5.06790999,2657.3,2657.2,0.2]
[1729579500887,6.70501599,2657.3,2657.2,0.2]
[1729579502582,9.72501599,2657.3,2657.2,0.2]
[1729579509602,11.60661599,2657.3,2657.2,0.2]
[1729579510443,8.59661599,2657.3,2657.2,0.2]
[1729579511021,3.76435,2656.5,2656.4,0.7571]
[1729579511163,4.19707074,2656.5,2656.4,0.7571]
[1729579511369,4.19707074,2656.5,2656.4,0.80714665]
[1729579511567,5.50177073,2656.5,2656.4,0.7571]
[1729579511807,5.50177073,2656.5,2656.4,0.80714665]
[1729579512308,6.4283698,2656.5,2656.4,0.05004665]
[1729579512712,3.76463,2656.3,2656.2,0.55]
[1729579513082,3.76463,2656.3,2656.2,0.59985414]
[1729579514112,4.19707074,2656.5,2656.3,0.7784]
[1729579514323,4.19707074,2656.5,2656.4,0.55]
[1729579514473,4.19707074,2656.5,2656.4,0.59982971]
[1729579520628,5.50177073,2656.5,2656.4,0.04982971]
[1729579520929,3.76449,2656.4,2656.3,0.7784]
[1729579521086,3.76482,2656.2,2656.1,0.55]
[1729579522720,3.76464,2656.3,2656.1,0.55]
[1729579524324,3.76457,2656.4,2656.1,0.55]
[1729579525143,3.76463,2656.3,2656.1,0.55]
[1729579527821,3.76463,2656.3,2656.0,0.7802]
[1729579528219,3.76484,2656.2,2656.0,0.7802]
[1729579528746,5.06932999,2656.3,2656.0,0.7802]
[1729579528911,3.76491,2656.1,2656.0,0.7802]
[1729579529107,5.06960999,2656.1,2656.0,0.7802]
[1729579529319,5.06946999,2656.2,2655.9,0.01880792]
[1729579529657,3.76506,2656.0,2655.8,0.8254]
[1729579529816,3.7652,2655.9,2655.8,0.8254]
[1729579530015,3.76506,2656.0,2655.8,0.8254]
[1729579532019,3.76494,2656.1,2655.8,0.8254]
[1729579532448,0.43272074,2656.5,2655.8,2.13009999]
[1729579532657,3.76449,2656.4,2656.0,0.8079]
[1729579532867,1.30469999,2656.4,2656.0,0.8079]
[1729579533157,3.76464,2656.3,2656.0,0.8079]
[1729579533354,5.06919999,2656.4,2656.0,0.8079]
[1729579533552,3.76465,2656.3,2656.0,0.8079]
[1729579533755,3.76478,2656.2,2656.0,0.8079]
[1729579534124,5.06934999,2656.3,2656.1,0.09230913]
[1729579534358,5.61955706,2656.3,2656.1,0.09230913]
[1729579535420,3.76477,2656.2,2656.1,0.09230913]
[1729579542957,4.19716074,2656.5,2656.1,0.09230913]
[1729579543161,3.76452,2656.4,2656.1,0.09230913]
[1729579546271,5.50186073,2656.5,2656.1,0.09230913]
[1729579546477,3.76465,2656.3,2656.1,0.09230913]
[1729579546945,3.76477,2656.2,2656.1,0.09230913]
[1729579550138,3.7646,2656.4,2656.1,0.09230913]
[1729579551364,3.76464,2656.3,2656.1,0.09230913]
[1729579552654,0.8299,2656.3,2656.1,0.09230913]
[1729579552856,0.8299,2656.9,2656.3,0.8171]
[1729579553085,3.76422,2656.6,2656.3,0.8171]
[1729579553257,3.76422,2656.6,2656.4,0.08397283]
[1729579553949,3.76435,2656.5,2656.4,0.08397283]
[1729579554363,5.06904999,2656.5,2656.4,0.08397283]
[1729579554590,3.76435,2656.5,2656.4,0.08397283]
[1729579556282,4.647677,2656.5,2656.4,0.08397283]
[1729579556652,4.647677,2656.5,2656.1,0.8239]
[1729579556854,3.76435,2656.5,2656.4,0.08119144]
[1729579557092,3.76435,2656.5,2656.1,0.8239]
[1729579557249,3.76435,2656.5,2656.4,0.08119144]
[1729579557575,3.76435,2656.5,2656.1,0.8239]
[1729579557887,3.76435,2656.5,2656.4,0.08119144]
[1729579558186,3.76435,2656.5,2656.1,0.8239]
[1729579558384,3.76435,2656.5,2656.4,0.08119144]
[1729579558592,4.647677,2656.5,2656.1,0.8239]
[1729579558765,3.76435,2656.5,2656.4,0.08119144]
[1729579559460,3.76435,2656.5,2656.1,0.8239]
[1729579559660,3.76435,2656.5,2656.4,0.08119144]
[1729579559857,3.76435,2656.5,2656.1,0.8239]
[1729579560101,3.76435,2656.5,2656.4,0.08119144]
[1729579560313,3.76435,2656.5,2656.1,0.8239]
[1729579560465,3.76435,2656.5,2656.4,0.08119144]
[1729579560671,4.647677,2656.5,2656.1,0.8239]
[1729579560899,4.647677,2656.5,2656.4,0.08108257]
[1729579560900,4.57195,2656.5,2656.4,0.08108257]
[1729579561101,3.765,2656.1,2655.9,0.786]
[1729579561306,3.76534,2655.8,2655.4,0.786]
[1729579561464,5.07044999,2655.6,2655.3,0.01880792]
[1729579561677,3.76591,2655.4,2655.1,2.09069999]
[1729579561895,3.76575,2655.6,2655.1,2.09069999]
[1729579562185,3.76584,2655.5,2655.1,2.09069999]
[1729579562603,3.76524,2655.9,2655.5,0.8075]
[1729579562803,3.76486,2656.2,2655.9,0.8075]
[1729579563174,3.76471,2656.3,2655.9,0.8075]
[1729579563380,3.76488,2656.2,2655.9,0.8075]
[1729579564109,3.76488,2656.2,2656.0,0.07836009]
[1729579564467,5.06940999,2656.3,2656.0,0.07836009]
[1729579565980,1.30469999,2656.2,2656.0,0.07836009]
[1729579566174,6.02892599,2656.3,2656.0,0.07836009]
[1729579566624,1.30469999,2656.2,2656.0,0.07836009]
[1729579566844,6.02892599,2656.3,2656.0,0.07836009]
[1729579567741,2.26421599,2656.3,2656.0,0.07836009]
[1729579570591,0.8081,2656.8,2656.2,1.30469999]
[1729579570747,5.06855999,2656.9,2656.2,5.06945999]
[1729579570914,1.30469999,2656.7,2656.3,0.07728203]
[1729579574035,1.30469999,2656.6,2656.3,0.07728203]
[1729579574605,1.30469999,2656.6,2656.2,0.55]
[1729579574806,1.30469999,2656.5,2656.2,0.55]
[1729579575018,1.30469999,2656.5,2656.3,0.07743573]
[1729579575213,5.06890999,2656.6,2656.3,0.07743573]
[1729579575415,1.30469999,2656.5,2656.3,0.07743573]
[1729579575802,1.30469999,2656.5,2656.1,0.8204]
[1729579576007,1.30469999,2656.5,2656.4,0.07742194]
[1729579576219,1.30469999,2656.5,2656.1,0.8204]
[1729579576420,1.30469999,2656.5,2656.4,0.07742194]
[1729579576803,1.30469999,2656.5,2656.1,0.8204]
[1729579577419,1.30469999,2656.5,2656.2,0.07744953]
[1729579578028,5.06918999,2656.5,2656.2,0.07744953]
[1729579580043,1.30469999,2656.3,2656.2,0.07744953]
[1729579580243,5.06932999,2656.3,2656.2,0.07744953]
[1729579580449,3.76463,2656.3,2656.2,0.07744953]
[1729579580821,3.76463,2656.4,2656.2,0.07744953]
[1729579581447,7.52916,2656.4,2656.2,0.07744953]
[1729579581654,1.30469999,2656.3,2655.9,0.7603]
[1729579581826,3.76478,2656.2,2655.9,0.7603]
[1729579582009,3.7647,2656.3,2655.9,0.7603]
[1729579584415,3.7645,2656.4,2655.9,4.52546]
[1729579587470,3.76464,2656.3,2655.9,0.7603]
[1729579588069,0.43272178,2656.4,2655.9,4.52548]
[1729579588456,4.19725178,2656.4,2655.9,4.52548]
[1729579589266,0.43272178,2656.4,2656.0,3.76504]
[1729579594267,0.43272178,2656.4,2656.1,0.07732243]
[1729579594467,4.19722178,2656.4,2656.1,0.07732243]
[1729579596046,0.43272178,2656.4,2656.1,0.07732243]
[1729579596382,0.43272178,2656.4,2656.2,4.55847]
[1729579596788,0.43272178,2656.4,2656.3,0.07726923]
[1729579597288,0.01880792,2657.0,2656.4,5.10819]
[1729579597439,0.01880792,2657.0,2656.5,2.09839999]
[1729579597645,3.76358,2657.1,2656.6,3.76419]
[1729579597845,3.76358,2657.1,2656.6,3.84140504]
[1729579598445,7.52719,2657.1,2656.6,3.84140504]
[1729579599084,1.8816,2657.3,2656.9,3.76378]
[1729579599267,5.64484,2657.3,2657.0,0.7578]
[1729579599587,5.64484,2657.3,2657.0,0.83467176]
[1729579599746,6.94953999,2657.3,2657.0,0.83467176]
[1729579601002,5.64484,2657.3,2657.0,0.83467176]
[1729579601691,1.8816,2657.3,2657.0,0.83467176]
[1729579602391,5.64481,2657.3,2657.0,0.83467176]
[1729579606502,1.8816,2657.3,2657.0,0.83467176]
[1729579610795,10.71285999,2657.3,2657.0,0.83467176]
[1729579611003,6.94952999,2657.3,2657.0,0.83467176]
[1729579612011,5.64483,2657.3,2657.0,2.13937175]
[1729579612161,1.8816,2657.3,2657.2,9.36824999]
[1729579612358,1.8816,2657.3,2657.2,9.37824999]
[1729579612592,1.8816,2657.3,2657.2,9.4643004]
[1729579615505,1.8816,2657.3,2657.2,10.76900039]
[1729579619589,0.29033657,2657.3,2657.2,10.76900039]
[1729579620792,0.01880792,2658.2,2658.0,3.7622]
[1729579620987,3.76153,2658.5,2658.1,1.37993364]
[1729579621211,3.76153,2658.5,2658.1,0.15009162]
[1729579622123,4.06853,2658.5,2658.1,0.07485797]
[1729579622628,0.307,2658.5,2658.1,0.07485797]
[1729579623230,4.06859,2658.5,2658.1,0.07485797]
[1729579624825,0.307,2658.5,2658.3,1.30469999]
[1729579625038,0.307,2658.5,2658.2,0.55]
[1729579625218,0.307,2658.5,2658.4,0.07477188]
[1729579625910,0.307,2658.5,2658.2,0.55]
[1729579626230,4.06852,2658.5,2658.4,0.07477188]
[1729579626403,4.06852,2658.5,2658.3,0.07445312]
[1729579626607,4.06852,2658.5,2658.4,0.07443934]
[1729579626917,4.06852,2658.5,2658.1,1.30469999]
[1729579627118,4.06852,2658.5,2658.4,0.07443934]
[1729579627313,4.06852,2658.5,2658.1,1.30469999]
[1729579627523,4.06852,2658.5,2658.4,0.07443934]
[1729579627692,4.06852,2658.5,2658.1,0.55]
[1729579627889,4.06852,2658.5,2658.4,0.07443934]
[1729579628089,0.307,2658.5,2658.1,0.55]
[1729579628433,4.06851,2658.5,2658.4,0.07444574]
[1729579628935,4.06851,2658.5,2658.1,0.55]
[1729579629233,0.307,2658.5,2658.4,0.07444574]
[1729579629833,0.307,2658.5,2658.1,1.85469999]
[1729579630031,0.307,2658.5,2658.4,0.07444574]
[1729579630334,0.307,2658.5,2658.1,1.85469999]
[1729579630538,0.307,2658.5,2658.4,0.07444574]
[1729579630718,4.06851,2658.5,2658.1,0.55]
[1729579630891,5.06658999,2658.3,2657.9,3.0]
[1729579631245,3.76189,2658.3,2657.9,3.0]
[1729579631438,1.30469999,2658.4,2657.9,3.0]
[1729579631593,5.06642999,2658.4,2657.9,6.76234]
[1729579631794,5.06642999,2658.4,2657.9,3.76234]
[1729579632027,3.76173,2658.4,2657.9,5.06703999]
[1729579632194,3.76173,2658.4,2657.9,3.76234]
[1729579632391,3.76185,2658.3,2657.9,0.55]
[1729579632911,3.76173,2658.4,2657.9,0.55]
[1729579633127,3.76181,2658.3,2657.9,0.55]
[1729579634033,1.30469999,2658.1,2657.7,1.9]
[1729579634244,5.06720999,2657.8,2657.7,1.9]
[1729579634931,5.89120999,2657.8,2657.7,1.9]
[1729579635446,5.89120999,2657.8,2657.3,0.0752556]
[1729579635447,3.7628,2657.6,2657.1,5.88946999]
[1729579636151,3.7628,2657.6,2657.2,5.14330833]
[1729579636462,3.7628,2657.6,2657.2,3.83860834]
[1729579636983,0.824,2657.8,2657.3,0.55]
[1729579637146,0.824,2657.8,2657.2,2.99463746]
[1729579637147,2.91937912,2658.0,2657.2,0.51844599]
[1729579637327,0.307,2658.5,2656.9,2.68400792]
[1729579637328,3.76332,2657.3,2656.9,2.68400792]
[1729579637530,3.76332,2657.3,2656.9,2.6652]
[1729579637734,3.76339,2657.2,2656.9,2.6652]
[1729579638371,7.5263,2657.4,2656.9,2.6652]
[1729579638536,3.7631,2657.4,2656.9,2.6652]
[1729579638936,3.76329,2657.3,2656.9,2.6652]
[1729579639154,3.76329,2657.3,2657.0,0.07047656]
[1729579639893,3.7635,2657.1,2657.0,0.07047656]
[1729579640039,4.5605,2657.1,2657.0,0.07047656]
[1729579641982,3.76335,2657.2,2656.9,1.9]
[1729579642197,3.76335,2657.2,2657.0,0.07047656]
[1729579643505,7.52683,2657.2,2657.0,0.07047656]
[1729579643985,3.76335,2657.2,2657.0,0.07047656]
[1729579645948,3.7635,2657.1,2657.0,0.07047656]
[1729579647269,5.60092291,2657.1,2657.0,0.07047656]
[1729579648352,4.80812291,2657.1,2657.0,0.07047656]
[1729579648851,3.7635,2657.1,2657.0,0.07047656]
[1729579649051,3.76335,2657.2,2657.0,0.07047656]
[1729579650496,3.76324,2657.3,2657.0,0.07047656]
[1729579650718,3.76336,2657.2,2657.0,0.07047656]
[1729579650863,4.5749,2657.1,2657.0,0.07047656]
[1729579651059,5.81276437,2657.1,2657.0,0.07047656]
[1729579651390,3.7635,2657.1,2657.0,0.07123799]
[1729579652153,3.76336,2657.2,2657.0,0.07123799]
[1729579652789,4.19570207,2657.4,2657.0,0.87823799]
[1729579653303,4.19570207,2657.4,2657.1,0.0712818]
[1729579653510,0.43255207,2657.4,2657.1,0.34910998]
[1729579655097,0.43255207,2657.4,2657.2,0.62526182]
[1729579655295,0.43255207,2657.4,2657.3,0.7579]